[Event "ChessKid Cup Div-I 2023"]
[Site "Online"]
[Date "2023.05.22"]
[Round "1.2"]
[White "Van Foreest, Jorden"]
[Black "Nakamura, Hikaru"]
[Result "0-1"]
[ECO "B06"]
[WhiteElo "2689"]
[BlackElo "2775"]
[Annotator "TA"]
[PlyCount "138"]
[EventDate "2023.05.21"]
[EventType "k.o."]
[EventCountry "NET"]
[SourceTitle "playchess.com"]
[Source "ChessBase"]
[SourceQuality "1"]
[TimeControl "900+3"]

{[%evp 9,138,36,36,43,50,46,55,37,52,50,53,39,50,66,76,66,75,68,97,97,175,10,9,0,153,156,212,206,219,228,231,183,248,239,246,229,220,147,159,85,77,58,41,0,0,0,0,0,0,0,0,0,0,0,0,0,0,0,0,0,8,0,9,8,8,8,8,0,6,7,8,0,0,0,0,0,0,0,0,-8,0,0,0,0,-6,-8,-3,-24,-24,-24,-25,-25,-25,-119,-56,-88,-80,-80,-79,-86,-67,-97,-53,-87,-87,-135,-135,-116,-104,-119,-116,-1727,-1682,-29969,-29973,-29971,-29972,-29972,-29975,-29975,-29976,-29976,-29977,-29974,-29975,-29976,-29972,-29982,-29981,-29980,-29977]} 1. d4 {[%emt 0:00:03]} g6 {[%emt 0:00:10]} 2. e4 {[%emt 0:00:03]} d6 {[%emt 0:00:02]} 3. Nc3 {[%emt 0:00:10]} Bg7 {[%emt 0:00:05]} 4. Be3 {[%emt 0:00:04]} c6 {[%emt 0:00:02]} 5. h3 {[%emt 0:00:15]} b5 {[%emt 0:00:04]} 6. Bd3 {[%emt 0:00:09] B06: Modern Defence.} a6 $5 {[%emt 0:00:25][%mdl 4] Leaves trodden paths.} 7. Nf3 {[%emt 0:00:22]} Nf6 {[%emt 0:00:09] [#]} 8. e5 $146 {[%emt 0:00:35] White is slightly better.} ({Predecessor:} 8. Qd2 O-O 9. Bh6 Qc7 10. e5 Nd5 11. exd6 exd6 12. Bxg7 Re8+ 13. Kf1 Kxg7 14. Nxd5 cxd5 {1-0 Gavrilov,A (2478)-Zozulia,A (2371) Eforie Nord op 3rd 2011 (10)}) 8... dxe5 {[%emt 0:00:26]} 9. dxe5 {[%emt 0:00:01]} Nd5 {[%emt 0:00:01]} 10. Nxd5 {[%emt 0:00:12]} Qxd5 {[%emt 0:00:24]} 11. Qe2 $1 {[%emt 0:00:03]} Be6 {[%emt 0:03:04]} 12. Bd4 {[%emt 0:01:08]} Qd8 {[%emt 0:00:58]} 13. O-O {[%emt 0:00:10]} Bd5 {[%emt 0:00:10] aiming for ...Bxf3.} 14. e6 {[%emt 0:00:45]} f6 {[%emt 0:01:11]} (14... Bxf3 $2 15. exf7+ Kxf7 16. Qxf3+ Kg8 17. Bxg7 Kxg7 18. a4 $16) (14... O-O $16) 15. Be4 $2 {[%emt 0:00:48]} ({White should try} 15. Rad1 $18) 15... Bc4 $1 $11 {[%emt 0:01:59]} 16. Bd3 $36 {[%emt 0:00:03][%mdl 2048] White is pushing.} (16. Qe3 $11) 16... Bd5 $1 $16 {[%emt 0:00:00]} 17. Bc5 {[%emt 0:00:11] Hoping for Nh4.} Qc8 {[%emt 0:00:27]} (17... O-O $16 {is a better defense.}) 18. c4 $18 {[%emt 0:00:10] Black is weak on the dark squares} bxc4 {[%emt 0:00:15]} 19. Bxc4 {[%emt 0:00:01]} O-O {[%emt 0:00:02]} 20. Rac1 {[%emt 0:01:03]} (20. Bxe7 $6 Re8 $16) 20... Qb7 {[%emt 0:00:05]} (20... Bxc4 $142 21. Qxc4 (21. Rxc4 Re8 $16) 21... Re8) 21. b4 {[%emt 0:00:42]} Bxc4 {[%emt 0:00:11]} 22. Qxc4 {[%emt 0:00:13]} (22. Rxc4 $6 a5) 22... a5 {[%emt 0:00:00]} 23. Rb1 {[%emt 0:00:00] Black must now prevent bxa5.} axb4 {[%emt 0:01:15]} 24. Rfd1 {[%emt 0:00:20]} (24. Bxb4 $6 Re8 $16) (24. Qxb4 $6 Qxb4 25. Bxb4 Re8 $11) (24. Rxb4 $142 Qa6 25. Qf4 (25. Bxe7 Qxc4 26. Rxc4 Re8 $14)) 24... Re8 $16 {[%emt 0:00:39]} 25. Bxb4 {[%emt 0:02:31]} ({Don't play} 25. Qxb4 Qxb4 26. Bxb4 (26. Rxb4 Na6 $15) 26... Na6 $11) 25... Qa6 {[%emt 0:00:30]} 26. Qe4 {[%emt 0:00:19][%cal Ob4e7]} Qxa2 {[%emt 0:00:06]} 27. h4 {[%emt 0:00:38][%cal Oh4h5]} Na6 {[%emt 0:00:13]} 28. Qxc6 {[%emt 0:00:38][%cal Ob4e7] Strongly threatening Bxe7!} Rac8 {[%emt 0:00:35]} 29. Qd7 {[%emt 0:00:02]} Nb8 {[%emt 0:00:15]} 30. Qd5 {[%emt 0:00:50]} Qxd5 {[%emt 0:00:01]} 31. Rxd5 {[%emt 0:00:00]} Na6 {[%emt 0:00:04] Threatens to win with ...Rb8.} 32. Ba3 {[%emt 0:00:31]} Rc3 {[%emt 0:00:04]} 33. Ra5 {[%emt 0:00:37]} Nc7 {[%emt 0:00:06]} 34. Ra7 {[%emt 0:00:02]} Bf8 {[%emt 0:00:52]} 35. Rbb7 {[%emt 0:00:31]} Rc8 {[%emt 0:00:03] [#]} 36. h5 $1 {[%emt 0:00:17]} Rc4 {[%emt 0:00:11]} (36... Nxe6 37. Bxe7) 37. g3 {[%emt 0:00:20]} Kg7 {[%emt 0:00:06]} 38. Bb2 {[%emt 0:00:48]} Kh6 {[%emt 0:00:12]} 39. hxg6 {[%emt 0:00:02]} hxg6 {[%emt 0:00:01]} 40. Ba3 {[%emt 0:00:16]} g5 {[%emt 0:00:08]} 41. Kg2 {[%emt 0:00:01]} Kg6 {[%emt 0:00:01]} 42. Rb2 {[%emt 0:00:27]} Rc3 {[%emt 0:00:34]} 43. Bb4 {[%emt 0:00:02]} Rc6 {[%emt 0:00:04]} 44. Re2 {[%emt 0:00:19]} ({Reject} 44. Nd4 Rc4 45. Ba5 Rxd4 $15) 44... Re8 {[%emt 0:00:05]} 45. Nd4 {[%emt 0:00:14]} Rc4 {[%emt 0:00:01][%csl LRb4,LRd4]} 46. Ba3 {[%emt 0:00:01]} Rc8 {[%emt 0:00:20]} 47. Rd2 {[%emt 0:00:07]} g4 {[%emt 0:00:08]} 48. Ne2 {[%emt 0:00:01]} Nb5 {[%emt 0:00:04]} 49. Ra5 {[%emt 0:00:02]} Nxa3 {[%emt 0:00:01]} 50. Rxa3 {[%emt 0:00:01]} Bh6 {[%emt 0:00:00] Prevents Nf4+.} 51. Rb2 {[%emt 0:00:10]} (51. Rd7 $11) 51... Re4 {[%emt 0:00:02]} (51... R8c6 $1 $17 52. f4 gxf3+ 53. Rxf3 Rxe6 54. Nf4+ Bxf4 55. gxf4 f5) 52. Ra6 {[%emt 0:00:07]} f5 {[%emt 0:00:07]} 53. f3 {[%emt 0:00:08]} gxf3+ {[%emt 0:00:05]} 54. Kxf3 {[%emt 0:00:00]} Kf6 {[%emt 0:00:02]} 55. Ra3 {[%emt 0:00:06]} Rxe6 {[%emt 0:00:09] Black is more active.} 56. Nf4 {[%emt 0:00:02]} Rd6 {[%emt 0:00:03]} 57. Nh5+ {[%emt 0:00:06] [#]} ({Better is} 57. Re2) 57... Kg5 $1 $17 {[%emt 0:00:02]} 58. Nf4 {[%emt 0:00:03] [#]} e5 $1 {[%emt 0:00:01]} 59. Nh3+ {[%emt 0:00:01]} Kf6 {[%emt 0:00:00]} 60. Nf2 $2 {[%emt 0:00:01][%mdl 8192]} (60. Rab3 $17) 60... Bc1 $19 {[%emt 0:00:03] ( -> ...e4+)} 61. Rab3 {[%emt 0:00:09]} Bxb2 {[%emt 0:00:01] Black mates.} 62. Rxb2 {[%emt 0:00:00] KRR-KRN} Rc3+ {[%emt 0:00:01]} 63. Kg2 {[%emt 0:00:01]} Rdc6 {[%emt 0:00:01]} 64. Rb8 {[%emt 0:00:02]} Rc2 {[%emt 0:00:05]} 65. Rf8+ {[%emt 0:00:02]} Kg6 {[%emt 0:00:01]} 66. Rg8+ {[%emt 0:00:02]} Kf7 {[%emt 0:00:00]} 67. Ra8 {[%emt 0:00:01]} e4 {[%emt 0:00:02]} 68. Kf1 {[%emt 0:00:04]} Rb6 {[%emt 0:00:02]} 69. Ra1 {[%emt 0:00:03]} Rb3 {[%emt 0:00:08] What a bad dream for White.   Weighted Error Value: White=0.29 (precise) /Black=0.09 (flawless)} 0-1

[Event "ChessKid Cup Div-I 2023"]
[Site "Online"]
[Date "2023.05.22"]
[Round "1.2"]
[White "Moussard, Jules"]
[Black "Abdusattorov, Nodirbek"]
[Result "1/2-1/2"]
[ECO "C15"]
[WhiteElo "2644"]
[BlackElo "2731"]
[Annotator "TA"]
[PlyCount "54"]
[EventDate "2023.05.21"]
[EventType "k.o."]
[EventCountry "NET"]
[SourceTitle "playchess.com"]
[Source "ChessBase"]
[SourceQuality "1"]
[TimeControl "900+3"]

{[%evp 14,54,6,6,10,6,14,0,31,0,0,0,0,0,1,0,0,0,16,0,0,0,0,0,0,0,0,0,0,0,16,2,1,0,0,0,0,0,0,0,0,-8,0]} 1. e4 {[%emt 0:00:03]} e6 {[%emt 0:00:05]} 2. d4 {[%emt 0:00:13]} d5 {[%emt 0:00:03]} 3. Nc3 {[%emt 0:00:12]} Bb4 {[%emt 0:00:03]} 4. Nge2 {[%emt 0:00:19]} dxe4 {[%emt 0:00:15]} 5. a3 {[%emt 0:00:02]} Bxc3+ {[%emt 0:00:26]} 6. Nxc3 {[%emt 0:00:00]} Nc6 {[%emt 0:00:02]} 7. d5 {[%emt 0:00:26]} exd5 {[%emt 0:00:03]} 8. Qxd5 {[%emt 0:00:00]} Be6 {[%emt 0:00:05] C15: French: 3 Nc3 Bb4: Unusual White 4th moves.} 9. Qxe4 {[%emt 0:00:02]} Nf6 {[%emt 0:00:04]} 10. Qh4 {[%emt 0:01:09]} Qd4 {[%emt 0:01:47] 10...Qe7 is the fancy move.} 11. Qxd4 {[%emt 0:00:37]} Nxd4 {[%emt 0:00:01] The position is equal.} 12. Bd3 {[%emt 0:00:03]} O-O-O {[%emt 0:00:25][%cal Oe6c4]} 13. Bg5 {[%emt 0:00:44]} Bf5 {[%emt 0:00:15] [#] Hoping for ...Bxd3.} 14. Bxf5+ {[%emt 0:02:27]} Nxf5 {[%emt 0:00:00]} 15. O-O {[%emt 0:00:04]} Nd4 {[%emt 0:00:04]} 16. Rac1 {[%emt 0:01:42] [#]} Rd6 $146 {[%emt 0:02:34]} ({Predecessor:} 16... Rhe8 17. Rfd1 Re6 18. Kf1 Rc6 19. Rd3 h6 20. Bf4 Ne6 21. Rxd8+ Kxd8 22. Rd1+ Ke8 {0-1 Martinez Duany,L (2459)-Martinez Ramirez,L (2374) Capablanca Memorial op 50th 2015 (4)}) 17. Rfd1 {[%emt 0:00:33]} Rhd8 {[%emt 0:00:13][%cal Od4e2] [#] ...Ne2+! would be deadly.} 18. Kf1 {[%emt 0:00:10] Repels Ne2} h6 {[%emt 0:00:19]} 19. Bf4 {[%emt 0:00:16]} R6d7 {[%emt 0:01:00]} 20. h3 {[%emt 0:00:02]} Re7 {[%emt 0:00:34]} 21. Rd3 {[%emt 0:00:52]} c5 {[%emt 0:00:52]} 22. Rcd1 {[%emt 0:00:15][%cal Oc3b5] Nb5! is the strong threat.} Rdd7 {[%emt 0:00:26]} 23. R3d2 {[%emt 0:01:00]} b6 {[%emt 0:00:06]} 24. Be3 {[%emt 0:00:58][%cal Re3d4]} Nf5 {[%emt 0:00:04]} 25. Bf4 {[%emt 0:00:01]} Nd4 {[%emt 0:00:23]} 26. Be3 {[%emt 0:00:03][%cal Re3d4]} Nf5 {[%emt 0:00:05]} 27. Bf4 {[%emt 0:00:02]} Nd4 {[%emt 0:00:05] An uneventful encounter.   Weighted Error Value: White=0.04 (flawless) /Black=0.04 (flawless)} 1/2-1/2

[Event "ChessKid Cup Div-I 2023"]
[Site "Online"]
[Date "2023.05.22"]
[Round "1.2"]
[White "Kollars, Dmitrij"]
[Black "Firouzja, Alireza"]
[Result "1-0"]
[ECO "C42"]
[WhiteElo "2607"]
[BlackElo "2785"]
[Annotator "TA"]
[PlyCount "85"]
[EventDate "2023.05.21"]
[EventType "k.o."]
[EventCountry "NET"]
[SourceTitle "playchess.com"]
[Source "ChessBase"]
[SourceQuality "1"]
[TimeControl "900+3"]

{[%evp 17,85,33,22,32,26,35,18,17,37,26,20,22,21,28,23,20,16,12,15,-12,0,0,0,0,0,-57,-64,-58,-69,-309,-325,-296,20,14,8,8,6,8,149,134,310,327,327,327,312,314,338,291,351,340,356,356,379,407,397,395,387,327,327,313,456,383,489,472,465,465,706,695,685,558]} 1. e4 {[%emt 0:00:04]} e5 {[%emt 0:00:05]} 2. Nf3 {[%emt 0:00:01]} Nf6 {[%emt 0:00:01]} 3. Nxe5 {[%emt 0:00:05]} d6 {[%emt 0:00:01]} 4. Nf3 {[%emt 0:00:01]} Nxe4 {[%emt 0:00:00]} 5. d4 {[%emt 0:00:01]} d5 {[%emt 0:00:01]} 6. Bd3 {[%emt 0:00:02]} Bd6 {[%emt 0:00:01]} 7. O-O {[%emt 0:00:01]} O-O {[%emt 0:00:01]} 8. c4 {[%emt 0:00:09]} c6 {[%emt 0:00:01]} 9. Re1 {[%emt 0:00:37]} Bf5 {[%emt 0:00:02]} 10. Ng5 {[%emt 0:00:09][%cal Rd3e4] C42: Petroff Defence: 3 Nxe5 and unusual White 3rd moves.} Re8 {[%emt 0:00:33]} 11. Bxe4 {[%emt 0:00:24]} dxe4 {[%emt 0:00:01]} 12. Nc3 {[%emt 0:00:01][%cal Rg5e4] The position is equal.} (12. Qh5 Bg6 13. Qd1 h6 $17) 12... Nd7 {[%emt 0:00:44]} 13. Ngxe4 {[%emt 0:00:50]} (13. Qh5 Bg6 14. Qd1 Nf6 $17) (13. c5 $5 {[%cal Rc5d6]} Bc7 14. Qb3 $14 (14. Ngxe4 Bxh2+ 15. Kxh2 Bxe4 $11)) 13... Bxe4 {[%emt 0:00:51]} 14. Nxe4 {[%emt 0:00:04]} Bxh2+ {[%emt 0:00:03][%mdl 64] [#] Decoy} 15. Kxh2 {[%emt 0:00:01]} (15. Kf1 {seems wilder.} Qa5 16. b3 Qf5 17. g4) 15... Qh4+ {[%emt 0:00:01]} 16. Kg1 {[%emt 0:00:04]} Rxe4 {[%emt 0:00:01] [#]} 17. Be3 $146 {[%emt 0:00:41]} (17. Rxe4 {simplifies} Qxe4 18. Be3 Re8 19. Qd2) ({Predecessor:} 17. Rxe4 Qxe4 18. Be3 Re8 19. b3 f5 20. Qd2 Nf6 21. Rf1 b6 22. a4 h6 23. Bf4 {½-½ Cortigiani,M (2242)-Tozzi,T (2043) ITA SC34 email 2020}) 17... Rae8 {[%emt 0:00:13]} 18. Qb3 {[%emt 0:00:51]} Nf6 {[%emt 0:02:18] ...Ng4 is the strong threat.} 19. f3 {[%emt 0:00:59] Prevents Ng4} (19. g3 $2 Qh5 20. Kg2 Ng4 $19) 19... R4e7 {[%emt 0:00:05] aiming for ...Nh5.} 20. Qc3 {[%emt 0:00:26]} Nh5 {[%emt 0:00:11] And now ...Nf4 would win.} 21. Bf2 {[%emt 0:01:16]} (21. d5 $11) 21... Qg5 $1 $15 {[%emt 0:00:04] Hoping for ...Nf4.} 22. Rxe7 {[%emt 0:02:10]} Rxe7 {[%emt 0:00:03]} 23. Kf1 $2 {[%emt 0:00:06] [#]} ({White should play} 23. Qc2 $1 $15) 23... Nf4 $1 $19 {[%emt 0:04:19][%csl Gf4][%cal Rg5g2]} 24. g3 {[%emt 0:00:07]} Ne2 {[%emt 0:00:11]} ({Better is} 24... Qh5 $19 {( -> ...Qh1+)} 25. gxf4 Qh1+ 26. Bg1 Re6) 25. Qa3 $11 {[%emt 0:00:21]} Re6 $132 {[%emt 0:01:13][%mdl 2048] Black is not keeping still} (25... Nxg3+ $2 26. Bxg3 Re6 27. Qxa7 $18) 26. d5 $1 {[%emt 0:02:08]} cxd5 {[%emt 0:00:14]} 27. Qc5 $1 {[%emt 0:00:20] Qc8+ would kill now.} Re8 {[%emt 0:02:59] Wards off Qc8. White now steadily converts the win.} (27... Nxg3+ 28. Bxg3 h5 29. cxd5 $16 (29. Qxd5 $2 Qxg3 30. Qxh5 Re3 $19)) (27... h6 $11 {remains equal.} 28. cxd5 Re5) 28. Re1 $16 {[%emt 0:00:41]} Qf5 $2 {[%emt 0:00:23]} (28... Qh6 $16 29. Kg2 Qd2) 29. Rxe2 $18 {[%emt 0:00:31][%cal Re2e8]} Qd3 {[%emt 0:00:06]} 30. Be3 {[%emt 0:00:02]} dxc4 {[%emt 0:00:08]} 31. Kf2 {[%emt 0:00:05]} (31. Qxa7 Qd1+ 32. Kf2 Qh1 33. Qxb7 Qh2+ 34. Ke1 Qh1+ 35. Kd2 Qb1) 31... h6 {[%emt 0:00:28]} 32. Qd4 {[%emt 0:00:16]} (32. Qxa7 Qd7 33. Bd4 Rd8) 32... Qb1 {[%emt 0:00:01]} 33. Qxc4 {[%emt 0:00:10]} Qh1 {[%emt 0:00:02]} 34. Qh4 {[%emt 0:00:02] Prevents Qh2+} (34. Bxa7 Qh2+ 35. Kf1 Qh1+ 36. Bg1 Qxf3+ 37. Rf2 Qh5 $18) 34... Qd1 {[%emt 0:00:04]} 35. Rd2 {[%emt 0:00:06]} (35. Qc4 Qh1 36. Qh4 Qxh4 37. gxh4 b6 $18) 35... Qb1 {[%emt 0:00:13]} 36. a3 {[%emt 0:00:09]} (36. Bxa7 $2 {too greedy.} Qe1+ 37. Kg2 Qxd2+ 38. Bf2 Re2 $19) 36... b5 {[%emt 0:00:02]} 37. Re2 {[%emt 0:00:22]} (37. Bxa7 $2 {is the wrong capture.} Qe1+ 38. Kg2 Qxd2+ 39. Bf2 Re2 $19) ({Weaker is} 37. Rd8 Qxb2+ 38. Kf1 Qb1+ 39. Kg2 Qb2+ 40. Bf2 Rxd8 41. Qxd8+ Kh7 $18) 37... Qd1 {[%emt 0:00:01]} 38. Qh3 {[%emt 0:00:15] Rd2 would be deadly.} Re5 {[%emt 0:00:26]} (38... Qd3 $142 39. Qf1 a6) 39. Qf1 {[%emt 0:00:05]} Qd5 {[%emt 0:00:01]} 40. Bxa7 {[%emt 0:00:15] White is clearly winning.} Rh5 {[%emt 0:00:01]} 41. Kg1 {[%emt 0:00:26]} f5 {[%emt 0:00:23]} (41... Kh7 $142 42. Be3 Qd3) 42. Be3 {[%emt 0:00:10]} Kh7 {[%emt 0:00:09]} 43. Rh2 {[%emt 0:00:10] Weighted Error Value: White=0.19 (very precise) /Black=0.45} 1-0

[Event "ChessKid Cup Div-I 2023"]
[Site "Online"]
[Date "2023.05.22"]
[Round "1.2"]
[White "Shimanov, Aleksandr"]
[Black "Caruana, Fabiano"]
[Result "1/2-1/2"]
[ECO "A14"]
[WhiteElo "2581"]
[BlackElo "2764"]
[Annotator "TA"]
[PlyCount "45"]
[EventDate "2023.05.21"]
[EventType "k.o."]
[EventCountry "NET"]
[SourceTitle "playchess.com"]
[Source "ChessBase"]
[SourceQuality "1"]
[TimeControl "900+3"]

{[%evp 20,45,14,13,12,11,20,28,22,32,12,6,9,5,18,2,3,0,0,0,0,0,0,0,0,0,0,-4]} 1. Nf3 {[%emt 0:00:10]} Nf6 {[%emt 0:00:07]} 2. c4 {[%emt 0:00:04]} e6 {[%emt 0:00:02]} 3. g3 {[%emt 0:00:21]} d5 {[%emt 0:00:02]} 4. Bg2 {[%emt 0:00:01]} Be7 {[%emt 0:00:01]} 5. O-O {[%emt 0:00:28]} O-O {[%emt 0:00:01]} 6. b3 {[%emt 0:00:02]} c5 {[%emt 0:00:02]} 7. cxd5 {[%emt 0:00:57]} Nxd5 {[%emt 0:00:04]} 8. Bb2 {[%emt 0:00:01]} Nc6 {[%emt 0:00:01]} 9. d4 {[%emt 0:00:15]} cxd4 {[%emt 0:00:03]} 10. Nxd4 {[%emt 0:00:00]} Nxd4 {[%emt 0:00:02]} 11. Qxd4 {[%emt 0:00:12][%csl Gb2][%cal Rd4g7]} Bf6 {[%emt 0:00:01] A14: English Opening: 1...e6 with b3 by White.} 12. Qd2 {[%emt 0:00:01]} Nf4 {[%emt 0:00:02] The modern move.} 13. gxf4 {[%emt 0:00:04]} Qxd2 {[%emt 0:00:02][%mdl 64] [#] Remove Defender. White has an edge.} 14. Nxd2 {[%emt 0:00:00]} Bxb2 {[%emt 0:00:01]} 15. Rad1 {[%emt 0:00:02][%cal Ba1d1,Bd1d2,Bd2d7][%mdl 32] The position is equal.} Rb8 {[%emt 0:00:35]} 16. Nc4 {[%emt 0:00:07]} Bf6 {[%emt 0:00:03] Black is weak on the light squares} 17. Rd2 {[%emt 0:00:19]} b6 {[%emt 0:01:22]} 18. Rc1 {[%emt 0:00:51]} Ba6 {[%emt 0:02:01]} 19. Rd7 {[%emt 0:04:13]} Bxc4 {[%emt 0:01:00]} 20. Rxc4 {[%emt 0:00:00]} a5 {[%emt 0:00:01] [#]} 21. Rcc7 $146 {[%emt 0:01:37]} ({Predecessor:} 21. Ra7 Rbc8 22. Bc6 Rfd8 23. e3 Rd6 24. Bd7 Rd8 25. Rcc7 Rd2 26. Bb5 Rxa2 27. Rxf7 {½-½ Pastar,S (2401)-Stojanovic,A (2262) EU-ch 23rd Vrnjacka Banja 2023 (9)}) 21... Rbd8 {[%emt 0:00:04]} 22. Be4 {[%emt 0:00:09]} g6 {[%emt 0:00:12]} 23. Kg2 {[%emt 0:00:55] A rather calm draw.   Weighted Error Value: White=0.03 (flawless) /Black=0.01 (flawless)} 1/2-1/2

[Event "ChessKid Cup Div-I 2023"]
[Site "Online"]
[Date "2023.05.22"]
[Round "1.3"]
[White "Firouzja, Alireza"]
[Black "Kollars, Dmitrij"]
[Result "0-1"]
[ECO "E01"]
[WhiteElo "2785"]
[BlackElo "2607"]
[Annotator "TA"]
[PlyCount "76"]
[EventDate "2023.05.21"]
[EventType "k.o."]
[EventCountry "NET"]
[SourceTitle "playchess.com"]
[Source "ChessBase"]
[SourceQuality "1"]
[TimeControl "900+3"]

{[%evp 9,75,9,19,15,19,14,0,0,12,-3,-6,-7,-2,-15,-9,0,-8,-10,-4,-20,0,-1,85,93,185,177,139,-6,59,-24,-32,-46,-46,-45,-50,-41,-44,-368,-115,-99,-101,-180,-186,-188,-161,-152,-52,-50,-50,-58,-56,-82,-69,-93,-45,-47,-44,-52,-46,-50,0,-110,0,0,0,0,256,-29999]} 1. d4 {[%emt 0:00:03]} Nf6 {[%emt 0:00:04]} 2. c4 {[%emt 0:00:01]} e6 {[%emt 0:00:01]} 3. g3 {[%emt 0:00:01]} d5 {[%emt 0:00:01]} 4. Bg2 {[%emt 0:00:01]} Bb4+ {[%emt 0:00:01]} 5. Bd2 {[%emt 0:00:37]} a5 {[%emt 0:00:02]} 6. a3 {[%emt 0:00:03] E01: Catalan: Early deviations.} Be7 {[%emt 0:00:03]} 7. Qc2 {[%emt 0:00:03]} O-O {[%emt 0:00:06]} 8. Nf3 {[%emt 0:00:01] The position is equal.} c6 {[%emt 0:00:05][%cal Bc7c6,Bc6c5][%mdl 32] [#]} 9. h4 $146 {[%emt 0:00:07]} ({Predecessor:} 9. O-O b6 10. Bf4 Ba6 11. Nbd2 Nbd7 12. Rfd1 Rc8 13. b4 h6 14. h4 Nh5 15. e3 Nxf4 16. exf4 dxc4 17. Nxc4 axb4 18. axb4 {½-½ Grischuk,A (2745)-Karjakin,S (2747) Moscow Region Cup rapid 2022 (7)}) 9... Nbd7 {[%emt 0:00:36]} 10. Bf4 {[%emt 0:00:13]} b6 {[%emt 0:00:25]} 11. Nbd2 {[%emt 0:00:13]} Bb7 {[%emt 0:00:15]} 12. e4 {[%emt 0:00:13]} dxe4 {[%emt 0:00:24]} 13. Ng5 {[%emt 0:01:50]} c5 {[%emt 0:01:11]} 14. d5 {[%emt 0:00:06]} exd5 {[%emt 0:00:34]} (14... e3 {seems wilder.} 15. Bxe3 exd5 16. cxd5 Re8) 15. cxd5 {[%emt 0:00:02]} Bxd5 {[%emt 0:00:42]} (15... Nxd5 $11 {remains equal.} 16. Ndxe4 Nxf4 17. gxf4 f5 18. Nf6+ Nxf6 19. Bxb7 Ra7) 16. O-O-O $1 $16 {[%emt 0:00:14][%cal Rd2e4]} Qc8 {[%emt 0:01:32]} (16... Ra7 $16) 17. Ndxe4 $18 {[%emt 0:00:19]} Bc6 {[%emt 0:01:09][%cal Oc5c4] [#]} 18. Kb1 {[%emt 0:07:58]} (18. Bd6 $1 $16 {[%cal Rd6e7]} Bxd6 19. Rxd6 Bxe4 20. Bxe4) 18... Ra7 {[%emt 0:01:02]} (18... h6 $11) 19. Nxf6+ {[%emt 0:00:36]} (19. Rxd7 $1 $14 Bxe4 20. Bxe4 Rxd7 21. Bxh7+ Kh8 22. Bf5) 19... Nxf6 $11 {[%emt 0:00:03]} 20. Bxc6 {[%emt 0:00:01]} Qxc6 {[%emt 0:00:05]} 21. Be5 {[%emt 0:00:00]} g6 $1 {[%emt 0:00:40]} 22. h5 {[%emt 0:00:01] aiming for hxg6.} Ng4 {[%emt 0:00:49]} 23. Nxh7 {[%emt 0:01:40][%mdl 8192] [#]} Nxe5 $2 {[%emt 0:00:12]} (23... Rd8 $1 $19 {and Black stays clearly on top.} 24. Bc3 (24. Rxd8+ $2 Bxd8 25. Rd1 Nxe5 $19) 24... Rxd1+ 25. Rxd1 Kxh7) 24. Nxf8 $17 {[%emt 0:00:04]} Bxf8 {[%emt 0:00:11]} 25. Rhe1 {[%emt 0:00:32]} (25. f4 $17 Nf3 26. hxg6 Qxg6 27. f5) 25... Nf3 $19 {[%emt 0:01:56]} 26. Re3 {[%emt 0:00:05]} Qf6 {[%emt 0:00:01]} 27. hxg6 {[%emt 0:01:01]} Nd4 {[%emt 0:00:02]} (27... fxg6 $17 {White must now prevent ...Nd4.} 28. Qc4+ Kg7) 28. gxf7+ $15 {[%emt 0:00:01]} Rxf7 {[%emt 0:00:00]} 29. Qe4 {[%emt 0:00:06]} Qxf2 {[%emt 0:00:12]} 30. g4 {[%emt 0:00:05] Inhibits Qf5.} Qf4 {[%emt 0:01:22]} 31. Qd3 {[%emt 0:00:03]} a4 {[%emt 0:00:39]} (31... Qxg4 $2 32. Rg3 $18) (31... Qf6 $17 32. Rh3 Qc6) 32. Rh1 $1 {[%emt 0:00:03]} Qf6 {[%emt 0:00:47] Wards off Qg6+} (32... Qxg4 $2 33. Rg3 $18) 33. Reh3 {[%emt 0:00:13]} Bg7 {[%emt 0:00:07] Threatens to win with ...Nf3.} 34. Re3 {[%emt 0:00:03]} b5 {[%emt 0:00:18]} (34... Qc6 $15 35. Qh7+ Kf8) 35. Qh7+ $1 $11 {[%emt 0:00:05]} Kf8 {[%emt 0:00:01][%cal Og7h6] ...Bh6! would be deadly.} 36. Rhe1 {[%emt 0:00:01][%csl Ge1][%cal Re3e8]} Ne6 {[%emt 0:00:17][%csl Gg7][%cal Rf6b2]} 37. Qc2 {[%emt 0:00:05]} Re7 {[%emt 0:00:02][%mdl 8192]} (37... Nc7 $11 {and Black has nothing to worry.}) 38. Qd3 $4 {[%emt 0:00:04][%mdl 8192]} (38. Qf5 $18) 38... Qxb2# {[%emt 0:00:02] Both players deserved the win here. Ingenious play by Kollars!   Weighted Error Value: White=0.42/Black=0.37} 0-1

[Event "ChessKid Cup Div-I 2023"]
[Site "Online"]
[Date "2023.05.22"]
[Round "1.3"]
[White "Nakamura, Hikaru"]
[Black "Van Foreest, Jorden"]
[Result "1/2-1/2"]
[ECO "A07"]
[WhiteElo "2775"]
[BlackElo "2689"]
[Annotator "TA"]
[PlyCount "25"]
[EventDate "2023.05.21"]
[EventType "k.o."]
[EventCountry "NET"]
[SourceTitle "playchess.com"]
[Source "ChessBase"]
[SourceQuality "1"]
[TimeControl "900+3"]

{[%evp 10,25,0,0,3,1,11,16,14,1,13,0,14,-21,-17,-37,-37,-45]} 1. Nf3 {[%emt 0:00:06]} d5 {[%emt 0:00:05]} 2. g3 {[%emt 0:00:00]} g6 {[%emt 0:00:02]} 3. Bg2 {[%emt 0:00:18]} Bg7 {[%emt 0:00:01]} 4. O-O {[%emt 0:00:00]} e5 {[%emt 0:00:05]} 5. d3 {[%emt 0:00:01]} Nc6 {[%emt 0:00:02]} 6. e4 {[%emt 0:00:08]} dxe4 {[%emt 0:00:04] A07: Réti Opening: New York and Capablanca Systems.} 7. dxe4 {[%emt 0:00:00]} Qxd1 {[%emt 0:00:00]} 8. Rxd1 {[%emt 0:00:03]} Bg4 {[%emt 0:00:01] The position is equal.} 9. c3 {[%emt 0:00:30] Repels Nd4} f6 {[%emt 0:00:02] [#]} 10. b4 $146 {[%emt 0:00:24]} ({Predecessor:} 10. Na3 Bd7 11. Nc4 Nh6 12. Be3 Nf7 13. b4 O-O-O 14. a4 Be6 15. Rxd8+ Rxd8 16. Bf1 {½-½ Bosiocic,M (2548)-Van Foreest,J (2694) Bundesliga 2223 2022 (11.2)}) 10... Bh6 {[%emt 0:00:12]} 11. Bb2 {[%emt 0:00:11]} Nge7 {[%emt 0:00:27]} 12. Nbd2 {[%emt 0:01:05]} O-O-O {[%emt 0:00:52]} 13. Nb3 {[%emt 0:01:08] Weighted Error Value: White=0.16 (very precise) /Black=0.03 (flawless)} 1/2-1/2